bitfinex-derivatives/quotes_ETHF0:USTF0_20251007
["timestamp","ask_amount","ask_price","bid_price","bid_amount"]
[1759844902716,3.2078,4686.8,4686.2,0.224]
[1759844902920,1.0284,4686.7,4686.5,0.38381]
[1759844903122,3.2078,4686.8,4686.6,0.3838]
[1759844903324,3.2078,4686.8,4686.7,0.224]
[1759844903722,3.2078,4686.8,4686.6,0.3838]
[1759844904019,3.2078,4687.4,4687.2,0.38375]
[1759844904225,3.2078,4687.4,4686.1,4.2436]
[1759844904424,3.59154,4687.4,4687.1,0.38376]
[1759844904625,3.59154,4687.4,4687.2,0.224]
[1759844904825,4.61994,4687.4,4687.2,0.224]
[1759844905022,4.61994,4687.4,4687.2,0.60775]
[1759844905224,1.0284,4687.4,4687.2,0.60775]
[1759844905427,0.022,4687.9,4687.7,0.38371]
[1759844905629,0.022,4687.9,4687.7,0.60771]
[1759844906428,0.022,4687.9,4687.7,1.64351]
[1759844906623,0.01939022,4687.9,4687.7,5.60771]
[1759844906826,0.3992,4690.0,4688.9,0.38361]
[1759844906827,0.38358,4689.4,4688.9,0.38361]
[1759844907029,1.41199,4689.3,4689.0,0.224]
[1759844907228,1.0284,4689.1,4689.0,0.224]
[1759844907430,1.412,4689.1,4689.0,0.224]
[1759844907728,0.00172442,4689.1,4689.0,1.24273377]
[1759844908028,0.00172442,4689.1,4689.0,0.60994377]
[1759844908225,0.00172442,4689.1,4689.0,0.38594377]
[1759844908430,0.00172442,4689.1,4689.0,34.90834377]
[1759844908729,0.00172442,4689.1,4689.0,34.90734377]
[1759844908929,0.00172442,4689.1,4689.0,0.00233377]
[1759844909122,1.03012442,4689.1,4689.0,0.00233377]
[1759844909323,1.03012442,4689.1,4689.0,0.22633377]
[1759844909527,6.03012442,4689.1,4689.0,0.00233377]
[1759844909729,8.783744,4689.1,4689.0,0.00233377]
[1759844910029,8.783744,4689.1,4689.0,0.22633377]
[1759844910520,6.03012442,4689.1,4689.0,0.00233377]
[1759844910724,1.03012442,4689.1,4689.0,0.22633377]
[1759844910929,6.03012442,4689.1,4689.0,0.00233377]
[1759844911124,0.95918,4688.3,4687.1,3.2078]
[1759844911325,3.2078,4687.3,4686.5,3.2078]
[1759844911522,0.38377,4687.0,4686.7,0.38379]
[1759844911825,3.59158,4686.9,4686.8,0.224]
[1759844912029,3.59158,4686.9,4686.8,0.00269662]
[1759844912226,3.59158,4686.9,4686.8,0.13069662]
[1759844912427,3.59158,4686.9,4686.8,0.00269662]
[1759844912735,1.38474,4686.2,4686.1,0.101]
[1759844912935,0.38389,4685.6,4684.8,4.1852]
[1759844913229,1.0009,4686.1,4685.4,0.3839]
[1759844913429,0.38389,4685.6,4685.0,0.38393]
[1759844913629,0.38592542,4685.6,4685.1,0.224]
[1759844913934,0.00203542,4685.6,4685.5,0.38389]
[1759844914125,0.00203542,4685.6,4685.0,0.38621145]
[1759844914629,1.0009,4685.5,4685.1,0.60792]
[1759844914831,1.0009,4685.5,4685.2,0.38391]
[1759844915131,0.00203542,4685.6,4685.3,0.3839]
[1759844915425,0.38392,4685.3,4685.0,0.00228145]
[1759844915626,1.0009,4685.4,4685.1,0.224]
[1759844915834,1.0009,4685.5,4685.3,0.3839]
[1759844916030,1.0009,4685.5,4685.4,0.224]
[1759844916225,0.00203542,4685.6,4685.4,0.224]
[1759844916527,1.0009,4685.5,4685.0,0.00228145]
[1759844916834,0.38592542,4685.6,4685.5,1.36129]
[1759844916835,0.00203542,4685.6,4685.5,1.36129]
[1759844917621,0.00203542,4685.6,4685.5,6.36129]
[1759844917826,3.2078,4687.9,4686.0,11.51564]
[1759844918021,1.0009,4688.5,4687.2,4.1852]
[1759844918022,3.2078,4688.4,4687.2,4.1852]
[1759844918340,3.2078,4688.4,4687.8,0.3837]
[1759844918534,1.34739,4688.0,4687.0,3.2078]
[1759844918732,1.3474,4688.0,4687.1,33.506]
[1759844918926,0.96546749,4688.0,4687.9,0.3837]
[1759844919122,0.00176749,4688.0,4687.7,0.3837]
[1759844919326,0.00176749,4688.0,4687.8,0.6077]
[1759844919530,0.00176749,4688.0,4687.9,0.9753]
[1759844919831,3.2078,4688.4,4688.3,0.38366]
[1759844920032,3.2078,4688.4,4688.3,0.60766]
[1759844920228,3.2078,4688.4,4687.7,0.9753]
[1759844920527,3.2078,4688.4,4688.0,0.38368]
[1759844920828,3.2101807,4688.4,4688.2,0.38367]
[1759844921224,3.2101807,4688.4,4688.0,0.38619952]
[1759844921429,3.2101807,4688.4,4688.3,0.224]
[1759844921827,3.2101807,4688.4,4688.3,1.1993]
[1759844922329,0.0023807,4688.4,4688.3,1.1993]
[1759844922627,1.34737,4688.3,4688.0,0.00250952]
[1759844922834,0.9637,4688.1,4688.0,0.00250952]
[1759844923035,0.9637,4688.1,4688.0,0.22650952]
[1759844923533,0.4122,4688.0,4686.2,3.2078]
[1759844923727,3.2078,4687.6,4686.2,3.2078]
[1759844923928,3.2078,4688.1,4686.9,3.2078]
[1759844924131,0.0023807,4688.4,4687.6,3.2078]
[1759844924330,0.0023807,4688.4,4688.1,0.38368]
[1759844924531,0.0023807,4688.4,4688.2,0.224]
[1759844924829,0.0023807,4688.4,4688.2,0.60767]
[1759844925537,0.0023807,4688.4,4688.3,0.224]
[1759844926030,0.0023807,4688.4,4688.3,4.1831]
[1759844926231,0.0023807,4688.4,4688.3,33.499]
[1759844926426,0.0023807,4688.4,4688.3,0.224]
[1759844926633,3.2078,4689.3,4689.2,0.38359]
[1759844926826,3.2078,4689.3,4689.2,0.224]
[1759844927030,0.38361,4689.0,4688.2,3.2078]
[1759844927335,0.38361,4689.0,4688.4,0.38366]
[1759844927636,0.38548435,4689.0,4688.6,0.38363]
[1759844927832,0.00187435,4689.0,4688.9,0.38361]
[1759844928032,0.9637,4688.9,4688.3,33.274]
[1759844928234,0.00187435,4689.0,4688.8,0.38362]
[1759844928434,0.9637,4688.9,4688.8,0.38362]
[1759844928834,0.9637,4688.9,4688.8,0.224]
[1759844929025,1.34732,4688.9,4688.5,0.38364]
[1759844929224,0.38362,4688.9,4688.6,0.60764]
[1759844929434,0.9637,4688.8,4688.6,0.60764]
[1759844929630,0.9637,4688.8,4688.6,0.38364]
[1759844929830,0.00187435,4689.0,4688.8,0.38362]
[1759844930231,0.9637,4688.9,4688.7,0.38363]
[1759844930434,0.00187435,4689.0,4688.9,1.35651]
[1759844930735,3.2078,4689.8,4689.7,0.38355]
[1759844930936,3.2078,4689.8,4689.7,0.60755]
[1759844931430,0.4122,4691.2,4689.7,2.15578]
[1759844931431,3.2078,4690.4,4689.7,2.15578]
[1759844931626,3.20987351,4690.4,4690.3,0.3835]
[1759844931833,3.20987351,4690.4,4690.3,0.224]
[1759844932029,3.20987351,4690.4,4690.3,1.1969]
[1759844932233,3.2078,4690.9,4690.4,0.95874]
[1759844932433,3.2078,4691.4,4690.8,0.9708]
[1759844932743,3.2078,4691.4,4690.9,34.4648]
[1759844932925,0.38349,4690.5,4690.1,3.59131]
[1759844933126,4.1715,4690.4,4689.6,3.2078]
[1759844933337,0.3835,4690.3,4689.9,0.38352]
[1759844933530,0.9637,4690.1,4689.8,0.38354]
[1759844933732,0.38353,4690.0,4689.6,3.2078]
[1759844933933,0.38353,4690.0,4689.7,0.224]
[1759844934125,0.9637,4690.3,4689.1,0.9708]
[1759844934330,0.38351,4690.2,4689.2,34.44997]
[1759844934526,0.38352,4690.1,4689.2,33.491]
[1759844934730,0.38352,4690.1,4689.3,33.491]
[1759844935139,0.38351,4690.3,4689.9,0.38353]
[1759844935333,3.20980838,4690.4,4690.1,0.38351]
[1759844935534,3.20980838,4690.4,4690.2,0.3835]
[1759844935731,3.59330838,4690.4,4690.0,0.224]
[1759844935932,0.9637,4690.3,4690.0,0.224]
[1759844936134,0.9637,4690.2,4689.2,3.2078]
[1759844936332,0.9637,4690.2,4689.3,33.49]
[1759844936533,3.20980838,4690.4,4689.5,0.9708]
[1759844936739,3.20980838,4690.4,4689.7,3.2078]
[1759844936938,3.20980838,4690.4,4689.9,0.38353]
[1759844937138,3.20980838,4690.4,4690.2,0.38351]
[1759844937339,3.20980838,4690.4,4690.0,0.38352]
[1759844937541,3.20980838,4690.4,4690.3,0.3835]
[1759844937845,3.20980838,4690.4,4690.3,0.6075]
[1759844938035,0.00200838,4690.4,4690.3,0.6075]
[1759844938231,0.00200838,4690.4,4690.3,6.5783]
[1759844938434,3.2078,4691.4,4690.4,0.9688]
[1759844938737,4.1715,4691.9,4691.1,0.9688]
[1759844938932,0.9637,4691.6,4690.8,3.2078]
[1759844939244,4.1715,4691.9,4690.9,0.224]
[1759844939536,0.9637,4691.3,4691.0,0.224]
[1759844939844,1.34713,4691.2,4690.4,0.9688]
[1759844940031,0.9637,4691.2,4690.4,0.9688]
[1759844940239,1.34718,4690.6,4689.9,33.262]
[1759844940539,4.5837,4691.4,4690.1,0.9688]
[1759844940748,0.38343,4691.2,4690.8,0.38346]
[1759844941038,3.62,4691.4,4691.2,0.38342]
[1759844941039,3.2078,4691.4,4691.2,0.38342]
[1759844941238,0.00274331,4691.9,4691.1,3.2078]
[1759844941542,0.38341,4691.4,4690.4,3.2078]
[1759844941740,0.38611331,4691.9,4691.7,0.38339]
[1759844941939,0.00274331,4691.9,4691.8,0.224]
[1759844942144,0.00274331,4691.9,4691.7,0.00251505]
[1759844942438,0.00274331,4691.9,4691.8,1.1655]
[1759844942837,0.00274331,4691.9,4691.7,0.00251505]
[1759844943034,0.9739,4691.8,4691.7,0.00251505]
[1759844943439,0.38348,4690.6,4690.3,3.2078]
[1759844943633,0.95854,4691.4,4689.7,3.2078]
[1759844943634,3.2078,4690.5,4689.7,3.2078]
[1759844943839,3.59129,4690.5,4689.9,0.38353]
[1759844944144,3.59129,4690.5,4689.4,0.38357]
[1759844944145,0.38351,4690.2,4689.4,0.38357]
[1759844944337,0.9739,4689.8,4689.4,0.00185763]
[1759844944538,0.38356,4689.6,4689.4,0.00185763]
[1759844944738,0.9739,4690.4,4689.7,0.38354]
[1759844945039,0.9739,4690.4,4689.5,0.224]
[1759844945040,0.9739,4690.4,4689.4,0.00185763]
[1759844945241,0.38355,4689.8,4689.4,0.00185763]
[1759844945543,0.38354,4689.8,4689.5,0.224]
[1759844945750,0.38356,4689.6,4689.4,0.00185763]
[1759844946044,0.9739,4689.6,4689.5,0.224]
[1759844946447,0.9739,4689.5,4689.4,0.00185763]
[1759844947244,0.9739,4689.5,4689.4,0.22585763]
[1759844947438,0.9739,4689.5,4689.4,0.00185763]
[1759844947940,0.9739,4689.5,4689.4,0.22585763]
[1759844948540,0.9739,4689.7,4689.5,0.38356]
[1759844948743,0.9739,4689.7,4689.4,0.22585763]
[1759844948744,0.9739,4689.9,4689.8,0.38354]
[1759844948941,3.2078,4690.0,4689.4,1.16735763]
[1759844949137,0.9739,4689.8,4689.4,0.00185763]
[1759844949341,0.9739,4689.6,4689.5,0.224]
[1759844949542,3.2078,4690.0,4689.8,0.38354]
[1759844950043,4.1817,4690.5,4690.3,0.3835]
[1759844950243,4.1817,4690.5,4690.4,0.224]
[1759844950444,4.1817,4690.5,4689.4,0.00185763]
[1759844950644,4.1817,4690.5,4689.5,33.483]
[1759844950844,4.1817,4690.5,4690.3,0.38349]
[1759844951046,3.59129,4690.5,4690.0,0.38352]
[1759844951242,0.9739,4690.4,4689.4,0.00185763]
[1759844951547,0.9739,4689.5,4689.4,0.00185763]
[1759844952349,0.9739,4689.8,4689.5,0.38356]
[1759844952647,0.9739,4689.8,4689.6,0.224]
[1759844952949,3.2078,4689.9,4689.8,1.32504]
[1759844953151,3.2078,4689.9,4689.8,0.38354]
[1759844953643,3.2078,4689.9,4689.8,1.32504]
[1759844953849,3.2078,4690.5,4690.3,0.3835]
[1759844954147,0.9739,4689.9,4689.6,0.38356]
[1759844954343,0.38355,4689.7,4689.5,0.38356]
[1759844954537,0.9739,4689.5,4689.4,0.00185763]
[1759844954942,0.9739,4689.5,4689.4,0.22585763]
[1759844955543,3.2078,4689.7,4689.4,0.22585763]
[1759844955850,1.35746,4689.6,4689.4,0.22585763]
[1759844956042,3.2078,4689.7,4689.5,0.38357]
[1759844956445,3.2078,4689.7,4689.5,1.32507]
[1759844956640,3.2078,4689.7,4689.5,0.38357]
[1759844956843,3.2078,4689.7,4689.6,0.9415]
[1759844957250,3.2078,4689.7,4689.4,0.22585763]
[1759844957251,3.2078,4689.7,4689.4,0.38542763]
[1759844957548,0.9739,4689.5,4689.4,0.00185763]
[1759844957944,1.93288,4689.3,4688.1,3.2078]
[1759844958144,0.9739,4688.2,4688.1,3.2078]
[1759844958347,0.9739,4687.7,4687.6,3.2078]
[1759844958845,1.35995247,4687.7,4687.6,0.22556927]
[1759844959150,1.35995247,4687.7,4687.6,0.00156927]
[1759844959345,0.00233247,4687.7,4687.6,0.22556927]
[1759844959642,0.00233247,4687.7,4687.6,1.16706927]
[1759844960250,0.00233247,4687.7,4687.6,4.37486927]
[1759844960549,0.00233247,4687.7,4687.6,9.37486927]
[1759844960745,0.3996,4689.0,4687.6,9.37486927]
[1759844960941,3.2078,4689.1,4688.1,3.2078]
[1759844961144,3.2078,4689.1,4688.7,0.38363]
[1759844961145,3.5914,4689.1,4688.7,0.38363]
[1759844961344,4.5653,4689.1,4688.8,0.224]
[1759844961541,0.38366,4688.4,4688.1,3.2078]
[1759844961745,0.9739,4688.3,4688.2,0.224]
[1759844962153,0.00247809,4688.4,4688.3,0.9415]
[1759844962349,0.00247809,4688.4,4688.3,5.9415]
[1759844962546,3.2078,4690.2,4689.9,0.38353]
[1759844962747,3.2078,4690.2,4690.0,0.60752]
[1759844962951,3.2078,4690.2,4690.0,0.38352]
[1759844963352,4.1817,4690.2,4690.1,0.224]
[1759844963552,4.18364063,4690.2,4690.1,0.224]
[1759844963745,3.20974063,4690.2,4690.1,0.224]
[1759844964051,0.00194063,4690.2,4690.1,6.1631]
[1759844964253,3.59119,4691.7,4691.2,0.38342]
[1759844964554,3.2078,4691.7,4691.3,0.224]
[1759844964755,0.9739,4691.5,4691.4,0.224]
[1759844964956,3.2078,4691.7,4691.5,0.3834]
[1759844965158,3.20989882,4691.7,4691.5,0.38528816]
[1759844965359,3.20989882,4691.7,4691.5,0.00188816]
[1759844965754,3.20989882,4691.7,4691.6,1.32249]
[1759844965755,0.00209882,4691.7,4691.6,1.32249]
[1759844965956,0.00209882,4691.7,4691.5,0.00188816]
[1759844965957,0.9739,4691.6,4691.5,0.00188816]
[1759844966155,0.9739,4691.6,4691.5,0.22588816]
[1759844966357,0.9739,4691.6,4691.5,0.00188816]
[1759844966955,0.9739,4691.6,4691.5,0.22588816]
[1759844967260,3.20989882,4691.7,4691.6,0.38339]
[1759844967460,3.20989882,4691.7,4691.5,0.60928816]
[1759844967660,0.00209882,4691.7,4691.6,0.9391]
[1759844968255,0.00209882,4691.7,4691.6,39.4211]
[1759844969059,3.2078,4692.8,4692.6,0.3833]
[1759844969259,3.2078,4692.8,4692.7,0.224]
[1759844969461,3.2078,4692.8,4692.7,1.161]
[1759844969766,3.2078,4693.3,4692.8,0.3833]
[1759844969955,0.02385641,4692.9,4692.8,0.3833]
[1759844970154,0.02385641,4692.9,4692.0,40.8]
[1759844970155,0.02385641,4692.9,4692.1,0.937]
[1759844970349,0.40714641,4692.9,4692.6,0.38331]
[1759844970555,1.38104641,4692.9,4692.7,0.3833]
[1759844970863,0.02385641,4692.9,4692.8,0.224]
[1759844971260,0.02385641,4692.9,4692.8,1.161]
[1759844972053,0.02385641,4692.9,4692.8,34.413]
[1759844972558,3.2078,4693.9,4693.7,0.38322]
[1759844972755,0.3832,4694.0,4693.6,0.38323]
[1759844973061,0.9391,4693.9,4693.7,0.60722]
[1759844973263,0.38319,4694.1,4693.7,0.224]
[1759844973459,0.3832,4694.0,4693.8,0.224]
[1759844973759,0.00272309,4694.1,4694.0,0.8795]
[1759844974056,0.00272309,4694.1,4694.0,1.1035]
[1759844974456,0.38313,4694.9,4694.2,0.8767]
[1759844974755,0.38314,4694.7,4694.0,1.48389]
[1759844974956,0.38314,4694.7,4694.3,0.38317]
[1759844975158,0.38312,4694.9,4694.4,0.224]
[1759844975454,0.00158826,4694.9,4694.8,0.8767]
[1759844975660,0.00158826,4694.9,4694.8,0.87838125]
[1759844975858,0.00158826,4694.9,4694.8,0.00168125]
[1759844976064,0.00158826,4694.9,4694.8,0.22468125]
[1759844976461,0.94068826,4694.9,4694.8,0.00168125]
[1759844976767,4.14848826,4694.9,4694.8,0.22468125]
[1759844977265,3.20938826,4694.9,4694.8,1.10138125]
[1759844977962,0.00158826,4694.9,4694.8,1.10138125]
[1759844978163,0.00158826,4694.9,4694.8,6.10138125]
[1759844978370,0.38303,4696.1,4695.1,0.95777]
[1759844978570,3.2078,4696.5,4695.5,0.9577]
[1759844978866,0.38301,4696.3,4696.0,0.38303]
[1759844979162,3.2078,4696.5,4695.3,4.16553]
[1759844979369,0.0018768,4696.3,4696.1,0.38302]
[1759844979568,0.0018768,4696.3,4696.2,0.223]
[1759844980466,0.0018768,4696.3,4696.2,1.0981]
[1759844980868,0.0018768,4696.3,4696.2,0.8751]
[1759844981070,0.0018768,4696.3,4696.2,1.0981]
[1759844981468,0.0018768,4696.3,4695.8,3.2078]
[1759844981671,1.3373,4696.2,4694.9,0.8751]
[1759844981966,0.9391,4695.9,4695.7,0.38305]
[1759844982171,0.38306,4695.7,4695.1,40.8]
[1759844982371,3.2078,4696.0,4695.9,0.8751]
[1759844982561,3.2078,4696.0,4695.9,1.0981]
[1759844982864,8.2078,4696.0,4694.9,0.8751]
[1759844983069,0.38311,4695.1,4695.0,0.223]
[1759844983266,0.9391,4695.1,4695.0,0.223]
[1759844983567,0.9391,4695.4,4694.8,0.00168125]
[1759844983759,0.38309,4695.4,4695.2,0.38309]
[1759844983964,3.2078,4695.5,4695.0,0.8751]
[1759844984158,3.59084,4696.0,4695.3,0.223]
[1759844984359,3.2078,4696.0,4695.8,0.38305]
[1759844984559,3.2078,4696.0,4695.9,0.223]
[1759844984764,3.2078,4696.0,4695.9,1.0981]
[1759844984962,0.0018768,4696.3,4696.2,1.24392]
[1759844985270,0.0018768,4696.3,4696.2,1.46692]
[1759844986070,0.0018768,4696.3,4695.7,0.8609]
[1759844986270,0.0018768,4696.3,4695.6,3.2078]
[1759844986466,0.9362,4696.1,4695.1,4.0687]
[1759844986661,0.9362,4696.1,4695.6,0.38306]
[1759844986864,0.0018768,4696.3,4696.0,0.38303]
[1759844987166,0.9380768,4696.3,4695.8,0.38305]
[1759844987366,0.38303,4696.1,4695.8,0.38305]
[1759844987570,0.9362,4695.8,4695.2,33.225]
[1759844987761,0.9362,4695.3,4695.1,3.5909]
[1759844987964,0.38307,4695.6,4695.3,0.38309]
[1759844988271,0.9362,4695.6,4695.2,0.223]
[1759844988468,0.38308,4695.5,4695.1,0.3831]
[1759844988667,0.9362,4695.4,4694.0,4.0687]
[1759844988869,0.38309,4695.4,4694.9,0.223]
[1759844989173,8.2078,4695.5,4694.9,0.223]
[1759844989376,4.144,4695.5,4694.9,0.223]
[1759844989668,0.9362,4696.4,4695.9,0.38304]
[1759844989866,3.2078,4696.7,4695.4,0.8609]
[1759844990062,4.144,4696.2,4696.0,0.38303]
[1759844990268,3.2078,4696.2,4696.1,0.223]
[1759844990467,4.144,4696.2,4696.1,0.223]
[1759844990668,0.9362,4696.1,4695.9,0.38304]
[1759844990873,3.2078,4696.2,4696.1,0.38303]
[1759844991067,3.97692,4696.2,4696.1,0.223]
[1759844991267,4.5301,4696.2,4695.5,0.38307]
[1759844991473,3.2078,4696.2,4695.6,0.223]
[1759844991772,4.144,4696.2,4696.0,0.38303]
[1759844991968,4.144,4696.2,4696.1,0.223]
[1759844992275,4.52702,4696.2,4696.1,0.223]
[1759844992472,0.38303,4696.1,4695.3,34.0839]
[1759844992669,3.2078,4696.2,4695.4,0.223]
[1759844992974,0.0018768,4696.3,4696.2,0.8609]
[1759844993173,0.0018768,4696.3,4696.1,0.38302]
[1759844993673,0.9362,4696.1,4695.1,3.2078]
[1759844993874,0.9362,4695.9,4695.6,0.38306]
[1759844994170,0.9362,4695.6,4695.4,0.38308]
[1759844994372,0.38309,4695.4,4695.1,3.5909]
[1759844994568,1.31928,4695.5,4695.2,0.223]
[1759844994773,3.2078,4695.9,4695.2,0.223]
[1759844995078,3.2078,4695.9,4695.3,0.38309]
[1759844995371,3.2078,4695.9,4695.7,0.38305]
[1759844995570,3.2078,4695.9,4695.2,0.8609]
[1759844995770,0.9362,4695.8,4695.2,0.3831]
[1759844995973,4.144,4695.9,4695.3,33.443]
[1759844996167,4.144,4695.9,4695.2,0.3831]
[1759844996474,3.2078,4695.9,4695.3,0.223]
[1759844996672,3.2078,4695.9,4695.4,0.223]
[1759844996873,0.9362,4695.8,4695.5,0.223]
[1759844997074,3.2078,4695.9,4695.5,0.223]
[1759844997375,3.2078,4695.9,4695.3,0.38309]
[1759844997571,0.38308,4695.5,4694.8,0.00168125]
[1759844997770,0.9362,4694.9,4694.8,0.00168125]
[1759844997982,0.9362,4694.9,4694.8,0.22468125]
[1759844998275,3.2078,4695.4,4694.8,0.22468125]
[1759844998480,3.59089,4695.4,4694.8,0.22468125]
[1759844998775,3.2078,4695.4,4694.8,0.00168125]
[1759844998977,0.9362,4695.1,4694.8,0.00168125]
[1759844999176,3.2078,4695.4,4694.8,0.00168125]
[1759844999378,3.2078,4695.4,4695.1,0.3831]
[1759844999585,3.2078,4695.9,4695.3,0.38309]
[1759844999881,3.2078,4695.9,4695.7,0.38305]
[1759845000174,0.0018768,4696.3,4696.2,0.8609]
[1759845000374,0.9582,4697.9,4696.5,1.0565]
[1759845000576,0.022,4697.9,4697.8,0.859]
[1759845000777,0.022,4697.9,4697.8,1.082]
[1759845000973,0.022,4697.9,4697.8,0.859]
[1759845001179,0.022,4697.9,4697.7,0.38289]
[1759845001477,0.02356185,4697.9,4697.3,41.659]
[1759845001683,0.02356185,4697.9,4697.7,3.2078]
[1759845001883,0.9362,4697.8,4697.7,3.2078]
[1759845002081,0.9362,4697.7,4696.1,4.0668]
[1759845002286,0.02356185,4697.9,4696.1,4.0668]
[1759845002287,0.9362,4697.2,4696.1,4.0668]
[1759845002577,3.2078,4696.8,4695.6,3.2078]
[1759845002779,3.568,4696.8,4695.6,3.2078]
[1759845002974,0.383,4696.5,4695.7,0.223]
[1759845003174,0.383,4696.5,4695.6,3.2078]
[1759845003175,3.2078,4696.1,4695.0,3.2078]
[1759845003373,0.38304,4695.9,4695.0,3.2078]
[1759845003576,0.9483,4695.5,4694.8,0.00168125]
[1759845003778,0.9483,4695.5,4694.9,0.223]
[1759845003975,0.9483,4696.7,4695.1,3.2078]
[1759845004178,0.38303,4696.1,4695.2,0.223]
[1759845004379,3.2078,4696.2,4694.8,0.00168125]
[1759845004380,0.38304,4695.9,4694.8,0.00168125]
[1759845004575,0.9483,4696.0,4694.8,0.00168125]
[1759845004774,0.9483,4696.0,4694.9,1.0633]
[1759845004984,0.9483,4696.0,4695.1,0.3831]
[1759845005484,0.9483,4696.0,4694.9,1.0633]
[1759845005679,3.2078,4696.2,4695.5,0.38307]
[1759845005876,0.9483,4696.6,4695.6,0.223]
[1759845006379,3.2078,4696.8,4696.0,0.38303]
[1759845006574,3.2078,4696.8,4696.1,0.60602]
[1759845006782,3.2078,4696.8,4696.1,0.223]
[1759845006979,3.2078,4697.4,4696.3,0.8403]
[1759845007284,3.2078,4697.4,4697.2,0.8403]
[1759845007479,3.2078,4697.4,4697.3,0.223]
[1759845007682,3.2078,4697.4,4697.2,0.38293]
[1759845007989,0.02356185,4697.9,4697.8,1.22319]
[1759845008284,0.02356185,4697.9,4697.8,1.44619]
[1759845008583,0.02356185,4697.9,4697.7,3.2078]
[1759845008779,0.02356185,4697.9,4697.8,33.438]
[1759845008982,0.02356185,4697.9,4697.8,34.2783]
[1759845009179,3.2078,4699.1,4697.8,33.438]
[1759845009485,1.3085,4699.8,4698.9,0.38279]
[1759845009690,1.3085,4699.8,4698.6,3.2078]
[1759845009691,1.3085,4699.8,4698.7,0.38281]
[1759845009886,1.3085,4699.8,4698.8,0.223]
[1759845010084,0.9483,4699.8,4699.0,0.38279]
[1759845010286,0.00158031,4699.8,4699.6,0.38274]
[1759845010484,0.00158031,4699.8,4699.7,1.0398]
[1759845010690,0.00158031,4699.8,4699.7,0.8168]
[1759845010987,0.00158031,4699.8,4699.7,34.2518]
[1759845011490,0.00158031,4699.8,4699.7,0.8168]
[1759845011685,0.00158031,4699.8,4699.1,3.2078]
[1759845011888,0.36178031,4699.8,4699.0,0.00256477]
[1759845012088,0.9483,4699.7,4699.0,0.00256477]
[1759845012389,0.00158031,4699.8,4699.4,0.8168]
[1759845012689,0.00158031,4699.8,4699.7,0.8168]
[1759845013891,3.2078,4700.6,4700.4,0.38267]
[1759845014093,3.2078,4701.1,4700.5,4.246]
[1759845014388,0.9483,4702.0,4700.5,4.246]
[1759845014389,4.1561,4701.6,4701.1,0.38261]
[1759845014585,3.2078,4702.2,4701.2,34.2412]
[1759845014783,0.00257761,4702.2,4702.0,0.38254]
[1759845014982,0.00257761,4702.2,4702.1,0.223]
[1759845015190,0.00257761,4702.2,4702.1,34.2402]
[1759845015589,0.00257761,4702.2,4702.1,33.202]
[1759845015784,0.00257761,4702.2,4702.1,33.425]
[1759845016186,0.00257761,4702.2,4702.1,34.2402]
[1759845016886,3.568,4704.0,4702.9,0.38247]
[1759845017091,3.568,4704.0,4702.9,3.59027]
[1759845017394,3.568,4704.0,4703.0,0.60546]
[1759845017595,3.568,4704.0,4703.4,3.2078]
[1759845017796,1.3085,4704.0,4703.5,0.60542]
[1759845018091,0.00183452,4704.0,4703.9,3.2078]
[1759845018296,0.00183452,4704.0,4703.9,37.4374]
[1759845018496,0.00183452,4704.0,4703.9,3.2078]
[1759845018793,0.9483,4703.6,4703.5,0.00267507]
[1759845019296,0.9483,4703.2,4701.0,3.2078]
[1759845019495,0.9287,4702.0,4701.0,3.2078]
[1759845019697,3.9505,4702.6,4701.5,3.2078]
[1759845019886,0.9287,4701.8,4701.5,3.2078]
[1759845020092,3.568,4702.6,4701.5,0.00226]
[1759845020093,1.2824,4701.6,4701.5,0.00226]
[1759845020287,1.2824,4701.6,4700.5,3.2078]
[1759845020288,3.5615,4701.6,4700.5,3.2078]
[1759845020492,4.1365,4700.6,4699.6,3.2078]
[1759845020895,4.1365,4700.6,4699.7,0.223]
[1759845021093,0.3537,4701.6,4699.2,0.8026]
[1759845021094,0.9287,4701.3,4700.1,3.2078]
[1759845021292,0.00173275,4701.3,4701.2,0.38261]
[1759845021488,0.00173275,4701.3,4700.3,0.8026]
[1759845021692,0.00173275,4701.3,4700.3,1.18528]
[1759845021894,0.00173275,4701.3,4700.5,0.38267]
[1759845022192,0.00173275,4701.3,4700.6,34.2126]
[1759845022496,0.38251,4702.5,4701.2,3.2078]
[1759845022497,3.2078,4702.5,4701.2,3.2078]
[1759845022686,3.2078,4702.5,4702.2,0.38253]
[1759845022893,3.2078,4702.5,4702.4,0.8026]
[1759845023093,3.2078,4703.9,4703.2,0.38245]
[1759845023387,3.2078,4703.9,4702.4,3.2078]
[1759845023388,3.2078,4703.9,4703.0,0.38246]
[1759845023595,0.00264845,4703.9,4703.1,0.17]
[1759845023792,0.00264845,4703.9,4703.4,0.38243]
[1759845023993,0.9287,4703.8,4703.4,0.00151405]
[1759845024190,0.9287,4703.8,4703.5,0.223]
[1759845024398,0.00264845,4703.9,4703.7,0.3824]
[1759845024694,0.00264845,4703.9,4703.8,0.8026]
[1759845025301,3.2078,4705.7,4704.7,0.38232]
[1759845025496,3.2078,4705.7,4704.8,33.405]
[1759845025699,0.95522,4707.7,4704.8,33.405]
[1759845025700,3.2078,4707.1,4705.6,3.2078]
[1759845026004,0.9287,4706.0,4705.1,3.2078]
[1759845026196,1.2824,4705.2,4705.1,3.2078]
[1759845026394,0.3537,4705.2,4705.1,3.4308]
[1759845026595,0.93035959,4706.0,4705.1,36.6078]
[1759845026902,0.3537,4707.0,4706.8,0.38215]
[1759845027098,0.9287,4708.4,4707.4,0.3821]